[Event "Turkey IS Bank Super League 2017"]
[Site "Darica-Kocaeli"]
[Date "2017.08.04"]
[Round "10"]
[White "Kesgin, Halit Kaan"]
[Black "Akdogan, Alperen"]
[Result "1/2-1/2"]
[ECO "B01"]
[WhiteElo "2207"]
[BlackElo "2151"]
[Annotator "NA RC"]
[PlyCount "99"]
[EventType "team-tourn"]
[EventCountry "TUR"]
[SourceTitle "playchess.com"]
[Source "ChessBase"]
[SourceQuality "1"]
[TimeControl "40/5400+30:1800+30"]

{[%evp 14,95,75,34,43,27,37,35,27,16,48,37,43,39,70,56,49,86,86,80,74,69,100,65,70,66,76,56,66,65,73,72,66,47,58,60,64,27,52,49,33,28,28,35,29,50,22,13,41,32767,52,61,32767,32767,32767,41,79,19,96,104,105,109,139,133,117,129,124,133,32767,32767,32767,0,46,0,32767,0,0,0,0,32767,32767,32767,-8,-8]} 1. e4 {[%emt 0:00:30]} d5 {[%emt 0:01:00]} 2. exd5 {[%emt 0:00:30]} Qxd5 {[%emt 0:00:30]} 3. Nc3 {[%emt 0:00:30]} Qd6 {[%emt 0:00:30]} 4. d4 {[%emt 0:00:30]} Nf6 {[%emt 0:00:30]} 5. Nf3 {[%emt 0:00:30]} Bg4 {[%emt 0:00:30]} 6. h3 {[%emt 0:00:30]} Bh5 {[%emt 0:00:00] B01: Scandinavian Defence} 7. g4 {[%emt 0:00:00]} Bg6 {[%emt 0:00:00]} 8. Ne5 {[%emt 0:00:00]} Nbd7 {[%emt 0:00:00]} 9. Nxg6 {[%emt 0:00:30]} hxg6 {[%emt 0:00:00]} 10. Bg2 {[%emt 0:00:30] LiveBook: 12 Games} c6 {[%emt 0:00:00]} 11. Qd3 {[%emt 0:00:30]} e6 {[%emt 0:09:00]} 12. Bd2 {[%emt 0:05:30]} Qc7 $146 {[%emt 0:06:30]} ({Predecessor:} 12... Nb6 13. O-O-O Nbd5 14. Ne2 {1-0 (39) Bologan,V (2640)-Kovalenko,I (2684) Tallinn 2016}) 13. O-O-O {[%emt 0:00:30]} O-O-O {[%emt 0:02:30]} 14. Ne2 {[%emt 0:09:30]} e5 {[%emt 0:17:30]} 15. Qb3 {[%emt 0:00:30]} Nb6 {[%emt 0:13:30] [#]} 16. dxe5 $1 {[%emt 0:03:30]} Qxe5 {[%emt 0:00:30]} 17. Rhe1 {[%emt 0:00:30]} Qc7 {[%emt 0:00:00]} 18. Bf4 {[%emt 0:05:30]} Bd6 {[%emt 0:00:00]} 19. Rxd6 {[%emt 0:00:30]} Rxd6 {[%emt 0:00:30]} 20. Qa3 $1 {[%emt 0:00:00]} Rhd8 {[%emt 0:16:30]} 21. Qxa7 {[%emt 0:01:00]} g5 {[%emt 0:03:30]} 22. Bg3 {[%emt 0:06:30]} ({Reject} 22. Bxg5 Re6 $15) 22... Nfd5 {[%emt 0:09:27]} 23. Bxd5 {[%emt 0:24:30]} (23. Be4 $5 {[%cal Re4f5]} g6 24. Qa3 $16) 23... Nxd5 {[%emt 0:00:07]} 24. Qa8+ {[%emt 0:00:30]} Kd7 {[%emt 0:00:07]} 25. Bxd6 {[%emt 0:00:30]} Rxa8 {[%emt 0:00:59]} 26. Bxc7 {[%emt 0:00:30]} Kxc7 {[%emt 0:00:16]} 27. a3 {[%emt 0:00:30]} b5 {[%emt 0:05:57]} 28. Nd4 {[%emt 0:03:30]} Rh8 {[%emt 0:03:12]} 29. Nf3 {[%emt 0:00:30]} f6 {[%emt 0:03:08]} 30. Rh1 {[%emt 0:07:30]} (30. Nd4 $5 {[%cal Re1e6]}) 30... Nf4 {[%emt 0:02:09]} 31. h4 {[%emt 0:00:30]} gxh4 {[%emt 0:00:35]} 32. Rxh4 {[%emt 0:00:30]} Rxh4 {[%emt 0:00:01]} 33. Nxh4 {[%emt 0:00:30]} Nh3 {[%emt 0:00:05]} 34. f3 {[%emt 0:00:30]} Ng1 $1 {[%emt 0:00:06]} 35. Nf5 {[%emt 0:01:30]} Nxf3 {[%emt 0:00:30]} ({Black should play} 35... g6 $1 $14 36. Nd4 Kb6) 36. Nxg7 {[%emt 0:00:00]} Kd6 {[%emt 0:00:25]} 37. b3 {[%emt 0:02:00]} Nh2 {[%emt 0:08:17]} 38. Nf5+ {[%emt 0:02:30]} Kd5 {[%emt 0:00:06]} 39. Ne3+ {[%emt 0:00:30]} Kd4 {[%emt 0:00:22]} 40. a4 {[%emt 0:00:00]} bxa4 {[%emt 0:31:12]} 41. bxa4 {[%emt 0:01:00]} Nf3 {[%emt 0:00:00] [#]} 42. Nf5+ {[%emt 0:01:30]} (42. a5 $1 $16 {[%cal Ra5a6]} Kc5 43. c4) 42... Kc5 {[%emt 0:00:00]} 43. c3 {[%emt 0:02:30]} Ne5 {[%emt 0:00:00]} 44. Nh6 {[%emt 0:02:30]} Kb6 {[%emt 0:00:00]} 45. Kc2 {[%emt 0:01:30]} Ka5 {[%emt 0:00:00]} 46. Ng8 {[%emt 0:06:30]} Nxg4 {[%emt 0:00:00]} 47. Kd3 {[%emt 0:00:00]} Kxa4 {[%emt 0:00:00]} 48. Ke4 $11 {[%emt 0:00:00]} Kb3 {[%emt 0:00:00]} 49. Kf4 {[%emt 0:00:30]} Kxc3 {[%emt 0:00:00]} 50. Ke4 {[%emt 0:00:30]} 1/2-1/2

[Event "Turkey IS Bank Super League 2017"]
[Site "Darica-Kocaeli"]
[Date "2017.08.04"]
[Round "10"]
[White "Sevgi, Volkan"]
[Black "Apaydin, Fethi"]
[Result "1/2-1/2"]
[ECO "B23"]
[WhiteElo "2199"]
[BlackElo "2277"]
[Annotator "NA RC"]
[PlyCount "71"]
[EventType "team-tourn"]
[EventCountry "TUR"]
[SourceTitle "playchess.com"]
[Source "ChessBase"]
[SourceQuality "1"]
[TimeControl "40/5400+30:1800+30"]

{[%evp 8,71,-8,-36,-2,-34,0,-11,32767,32767,-20,-33,-11,-12,32,16,47,32767,32767,32767,42,45,54,8,74,32767,32767,32767,32767,-137,32767,32767,32767,32767,-98,-121,-116,-112,-11,-122,110,131,112,32767,105,0,-18,32767,-16,-204,-190,32767,-180,-183,32767,32767,-135,32767,32767,32767,32767,-202,0,0,0,-271]} 1. e4 {[%emt 0:00:30]} c5 {[%emt 0:01:00]} 2. Nc3 {[%emt 0:00:30]} a6 {[%emt 0:00:30]} 3. g4 {[%emt 0:00:00]} e6 {[%emt 0:04:30]} 4. d3 {[%emt 0:02:00]} Ne7 {[%emt 0:01:30]} 5. Bg5 {[%emt 0:06:30]} Qc7 {[%emt 0:02:30]} 6. Qd2 {[%emt 0:05:30]} b5 {[%emt 0:00:30]} 7. Bg2 {[%emt 0:01:30]} Bb7 {[%emt 0:01:30]} 8. Bf4 {[%emt 0:06:30]} d6 {[%emt 0:00:30]} 9. Nge2 {[%emt 0:01:30]} Nbc6 {[%emt 0:00:30]} 10. h4 {[%emt 0:00:30]} Qd7 {[%emt 0:16:30]} 11. g5 {[%emt 0:03:30]} Nd4 {[%emt 0:04:30]} 12. Nxd4 {[%emt 0:02:30]} cxd4 {[%emt 0:00:30]} 13. Ne2 {[%emt 0:00:30]} Nc6 {[%emt 0:04:30]} 14. Bg3 {[%emt 0:02:30]} Be7 {[%emt 0:10:30]} 15. f4 {[%emt 0:03:30]} O-O {[%emt 0:18:30]} (15... Bd8 $11) 16. Bf2 {[%emt 0:04:30]} e5 {[%emt 0:00:30]} 17. Bh3 {[%emt 0:03:30]} Qc7 {[%emt 0:02:30]} 18. g6 $2 {[%emt 0:00:30]} (18. a3 $11) 18... fxg6 {[%emt 0:01:30]} 19. Be6+ {[%emt 0:00:30]} Kh8 {[%emt 0:00:30]} 20. h5 {[%emt 0:00:30] [#]} g5 $1 {[%emt 0:02:30]} 21. fxg5 {[%emt 0:02:30]} Nd8 {[%emt 0:09:49]} 22. Bb3 {[%emt 0:00:30] [#]} Qd7 {[%emt 0:00:02]} (22... d5 $1 $17 {[%mdl 512]} 23. h6 (23. Bxd5 Bxd5) 23... g6 24. Bxd5 Bxd5 25. exd5 Nf7) 23. h6 {[%emt 0:00:30] [#]} (23. Nxd4 $1 $11 {was the only way to keep the balance.} d5 24. g6) 23... Ne6 $2 {[%emt 0:08:49]} (23... g6 $1 $17 {keeps the pressure on.} 24. Nxd4 d5) 24. hxg7+ {[%emt 0:14:30]} Kxg7 {[%emt 0:00:17]} 25. g6 {[%emt 0:01:30]} h5 {[%emt 0:02:33]} 26. Rxh5 {[%emt 0:05:30]} ({White should play} 26. Qd1 $16) 26... Rh8 {[%emt 0:00:03]} 27. Bxe6 {[%emt 0:08:30]} Qxe6 {[%emt 0:00:09]} 28. Rxh8 $2 {[%emt 0:04:00]} ({White should play} 28. Rh7+ $15 Rxh7 29. gxh7) 28... Rxh8 {[%emt 0:00:08]} 29. O-O-O {[%emt 0:01:34]} Qxa2 {[%emt 0:02:08]} 30. c3 {[%emt 0:00:27]} b4 {[%emt 0:00:24]} 31. Nxd4 {[%emt 0:01:33] [#]} Bc8 $1 {[%emt 0:03:21]} 32. Rg1 {[%emt 0:07:33]} Qa1+ $2 {[%emt 0:03:02]} 33. Kc2 {[%emt 0:00:10]} Qa4+ {[%emt 0:00:00]} 34. Kc1 {[%emt 0:02:06] [#]} Qa1+ {[%emt 0:00:30]} (34... b3 $1 $19 {[%cal Ra4a1]} 35. Kd1 Rh3 36. Nf5+ Bxf5 37. exf5 Rh2) 35. Kc2 {[%emt 0:00:30]} Qa4+ {[%emt 0:00:00]} 36. Kc1 $19 {[%emt 0:01:52]} 1/2-1/2

[Event "Turkey IS Bank Super League 2017"]
[Site "Darica-Kocaeli"]
[Date "2017.08.04"]
[Round "10"]
[White "Yazici, Ugur Doga"]
[Black "Bayyurt, Izge"]
[Result "1-0"]
[ECO "B01"]
[WhiteElo "2144"]
[BlackElo "1839"]
[Annotator "NA"]
[PlyCount "65"]
[EventType "team-tourn"]
[EventCountry "TUR"]
[SourceTitle "playchess.com"]
[Source "ChessBase"]
[SourceQuality "1"]
[TimeControl "40/5400+30:1800+30"]

{[%evp 17,63,29,93,60,32767,32767,32767,32767,101,85,77,83,86,96,98,106,81,77,77,66,172,172,164,151,152,152,144,165,167,86,126,141,143,131,32767,32767,32767,133,116,125,32767,172,325,32767,32767,531,32767,589]} 1. e4 {[%emt 0:00:30]} d5 {[%emt 0:01:00]} 2. exd5 {[%emt 0:00:30]} Nf6 {[%emt 0:00:30]} 3. Bb5+ {[%emt 0:00:30]} Bd7 {[%emt 0:00:30]} 4. Be2 {[%emt 0:00:30]} Nxd5 {[%emt 0:00:30]} 5. d4 {[%emt 0:00:00]} g6 {[%emt 0:02:30]} 6. c4 {[%emt 0:00:00]} Nb6 {[%emt 0:00:30]} 7. Nc3 {[%emt 0:00:00] B01: Scandinavian Defence} Bg7 {[%emt 0:07:30]} 8. c5 {[%emt 0:01:00]} Nc8 {[%emt 0:00:00]} 9. Nf3 {[%emt 0:00:30]} O-O {[%emt 0:00:00]} 10. O-O {[%emt 0:00:30]} c6 {[%emt 0:03:30]} 11. h3 {[%emt 0:00:30]} Be6 $146 {[%emt 0:02:30]} ({Predecessor:} 11... Qc7 12. Be3 e6 13. Qd2 Be8 14. Bf4 Qe7 {1-0 (37) Marciano,D (2485)-Audin,G (1830) Issy les Moulineaux 1997}) 12. Be3 {[%emt 0:04:30]} Nd7 {[%emt 0:10:30]} 13. Ng5 {[%emt 0:01:30]} Bd5 {[%emt 0:02:30]} 14. Nxd5 {[%emt 0:00:30]} cxd5 {[%emt 0:00:00]} 15. Qb3 {[%emt 0:02:30]} e6 {[%emt 0:01:00]} 16. Qxb7 {[%emt 0:05:30]} Rb8 {[%emt 0:00:30]} 17. Qa6 {[%emt 0:00:30]} Rxb2 {[%emt 0:00:30]} 18. Rab1 {[%emt 0:05:30]} Rxb1 {[%emt 0:15:30]} ({Black should play} 18... Nb8 $14 19. Qd3 Rxb1 20. Rxb1 Nc6) 19. Rxb1 {[%emt 0:00:30]} e5 {[%emt 0:00:00]} 20. c6 {[%emt 0:03:30]} Ndb6 {[%emt 0:01:00]} 21. dxe5 {[%emt 0:02:30]} Bxe5 {[%emt 0:01:30]} 22. Nf3 {[%emt 0:00:30]} Bc7 {[%emt 0:11:30]} 23. Nd4 {[%emt 0:02:30]} (23. a4 $18) 23... Qd6 {[%emt 0:01:30]} 24. g3 {[%emt 0:00:30]} Re8 {[%emt 0:00:30]} 25. Bf4 {[%emt 0:07:30]} Qf6 {[%emt 0:02:30]} 26. Bxc7 {[%emt 0:00:30]} Qxd4 {[%emt 0:03:30]} 27. Bb8 {[%emt 0:08:30]} ({Better is} 27. Bb5 $18) 27... Nc4 {[%emt 0:03:30]} 28. Rd1 {[%emt 0:02:30]} Qc5 {[%emt 0:06:30]} 29. Bf3 {[%emt 0:05:30]} d4 {[%emt 0:11:55]} (29... Kg7 $142 30. a4 (30. Bxd5 Re2 $16) 30... Ne7 31. Bxa7 Qxc6 32. Bd4+ f6 33. Qxc6 Nxc6 34. Bxd5 Nxd4) 30. Rc1 {[%emt 0:02:30]} N8b6 {[%emt 0:05:50]} 31. Bxa7 {[%emt 0:01:30]} Qb4 {[%emt 0:01:48]} 32. c7 $18 {[%emt 0:05:30]} d3 {[%emt 0:04:09]} 33. Bxb6 {[%emt 0:01:30]} 1-0

[Event "Turkey IS Bank Super League 2017"]
[Site "Darica-Kocaeli"]
[Date "2017.08.04"]
[Round "10"]
[White "Dolgun, Can"]
[Black "Bozbey, Ali"]
[Result "0-1"]
[ECO "B43"]
[WhiteElo "2104"]
[BlackElo "2139"]
[Annotator "ChessBase"]
[PlyCount "132"]
[EventType "team-tourn"]
[EventCountry "TUR"]
[SourceTitle "playchess.com"]
[Source "ChessBase"]
[SourceQuality "1"]
[TimeControl "40/5400+30:1800+30"]

1. e4 {[%emt 0:00:30]} c5 {[%emt 0:01:00]} 2. Nf3 {[%emt 0:00:30]} e6 {[%emt 0:00:30]} 3. d4 {[%emt 0:00:30]} cxd4 {[%emt 0:00:30]} 4. Nxd4 {[%emt 0:00:30]} a6 {[%emt 0:00:30]} 5. Bd3 {[%emt 0:00:30]} Qc7 {[%emt 0:00:30]} 6. Nc3 {[%emt 0:00:30]} Nf6 {[%emt 0:00:00]} 7. O-O {[%emt 0:00:30]} Bd6 {[%emt 0:00:00]} 8. Kh1 {[%emt 0:10:30]} Nc6 {[%emt 0:00:00]} 9. Nxc6 {[%emt 0:10:30]} dxc6 {[%emt 0:00:00]} 10. f4 {[%emt 0:00:30]} e5 {[%emt 0:00:00]} 11. f5 {[%emt 0:01:30]} b5 {[%emt 0:05:00]} 12. Be3 {[%emt 0:02:30]} Bb7 {[%emt 0:01:30]} 13. Bf2 {[%emt 0:01:30]} Rd8 {[%emt 0:06:30]} 14. a4 {[%emt 0:03:30]} Bb4 {[%emt 0:08:30]} 15. axb5 {[%emt 0:10:30]} cxb5 {[%emt 0:00:00]} 16. Qf3 {[%emt 0:05:30]} Bxc3 {[%emt 0:08:00]} 17. bxc3 {[%emt 0:00:30]} Kf8 {[%emt 0:00:00]} 18. Rab1 {[%emt 0:06:30]} Qxc3 {[%emt 0:03:00]} 19. Be1 {[%emt 0:01:30]} Qc6 {[%emt 0:00:00]} 20. Bb4+ {[%emt 0:00:30]} Kg8 {[%emt 0:00:00]} 21. Rfe1 {[%emt 0:00:30]} h5 {[%emt 0:01:30]} 22. Rb3 {[%emt 0:05:30]} h4 {[%emt 0:08:30]} 23. Rc3 {[%emt 0:00:30]} Qd7 {[%emt 0:00:30]} 24. Ba5 {[%emt 0:02:30]} Rc8 {[%emt 0:04:30]} 25. Rxc8+ {[%emt 0:07:30]} Qxc8 {[%emt 0:00:30]} 26. c3 {[%emt 0:00:30]} h3 {[%emt 0:02:30]} 27. g3 {[%emt 0:02:30]} Rh5 {[%emt 0:01:30]} 28. Kg1 {[%emt 0:01:30]} Qc5+ {[%emt 0:00:30]} 29. Kf1 {[%emt 0:07:41]} Qc6 {[%emt 0:15:30]} 30. Rd1 {[%emt 0:04:57]} Rh6 {[%emt 0:03:30]} 31. Re1 {[%emt 0:02:01]} Nd7 {[%emt 0:00:30]} 32. Bb4 {[%emt 0:00:57]} Nc5 {[%emt 0:00:30]} 33. Bc2 {[%emt 0:02:47]} Na4 {[%emt 0:13:40]} 34. Bb3 {[%emt 0:04:23]} Nb6 {[%emt 0:01:59]} 35. Qd3 {[%emt 0:01:44]} Nc4 {[%emt 0:02:22]} 36. Bxc4 {[%emt 0:01:10]} Qxc4 {[%emt 0:01:11]} 37. Qxc4 {[%emt 0:00:58]} bxc4 {[%emt 0:00:09]} 38. Kf2 {[%emt 0:00:00]} a5 {[%emt 0:00:20]} 39. Bxa5 {[%emt 0:01:04]} Ra6 {[%emt 0:00:04]} 40. Bc7 {[%emt 0:00:00]} f6 {[%emt 0:01:15]} 41. g4 {[%emt 0:03:48]} Kf7 {[%emt 0:01:30]} 42. Kf3 {[%emt 0:03:30]} Ra2 {[%emt 0:05:30]} 43. Bb6 {[%emt 0:01:30]} Rc2 {[%emt 0:00:30]} 44. Ba5 {[%emt 0:01:30]} Rxh2 {[%emt 0:00:30]} 45. Rb1 {[%emt 0:02:30]} Bc6 {[%emt 0:02:30]} 46. Rb8 {[%emt 0:00:30]} Ra2 {[%emt 0:00:30]} 47. Bb4 {[%emt 0:00:30]} Be8 {[%emt 0:00:30]} 48. g5 {[%emt 0:01:30]} fxg5 {[%emt 0:00:30]} 49. Rb7+ {[%emt 0:00:30]} Kg8 {[%emt 0:00:30]} 50. Bd6 {[%emt 0:00:30]} h2 {[%emt 0:00:30]} 51. Rb1 {[%emt 0:00:30]} Bh5+ {[%emt 0:00:30]} 52. Kg3 {[%emt 0:00:30]} Rd2 {[%emt 0:00:00]} 53. Bxe5 {[%emt 0:00:30]} Bd1 {[%emt 0:00:00]} 54. Rxd1 {[%emt 0:04:48]} Rxd1 {[%emt 0:00:30]} 55. Kxh2 {[%emt 0:00:30]} Re1 {[%emt 0:00:30]} 56. Bd4 {[%emt 0:00:30]} Rxe4 {[%emt 0:00:30]} 57. Kg3 {[%emt 0:00:30]} Rf4 {[%emt 0:00:00]} 58. Be3 {[%emt 0:00:14]} Rxf5 {[%emt 0:00:00]} 59. Kg4 {[%emt 0:00:00]} g6 {[%emt 0:00:00]} 60. Bxg5 {[%emt 0:00:14]} Kf7 {[%emt 0:00:00]} 61. Be3 {[%emt 0:00:30]} Ke6 {[%emt 0:00:30]} 62. Bd4 {[%emt 0:00:30]} Kd5 {[%emt 0:00:30]} 63. Kg3 {[%emt 0:00:00]} Ke4 {[%emt 0:00:00]} 64. Kg2 {[%emt 0:00:00]} Kd3 {[%emt 0:00:00]} 65. Kg3 {[%emt 0:00:00]} Ra5 {[%emt 0:00:00]} 66. Kg4 {[%emt 0:00:05]} Ra3 {[%emt 0:00:00]} 0-1

[Event "Turkey IS Bank Super League 2017"]
[Site "Darica-Kocaeli"]
[Date "2017.08.04"]
[Round "10"]
[White "Ozenir, Ekin Baris"]
[Black "Tanriverdi, Enes"]
[Result "0-1"]
[ECO "E92"]
[WhiteElo "2098"]
[BlackElo "2247"]
[Annotator "NA RC"]
[PlyCount "80"]
[EventType "team-tourn"]
[EventCountry "TUR"]
[SourceTitle "playchess.com"]
[Source "ChessBase"]
[SourceQuality "1"]
[TimeControl "40/5400+30:1800+30"]

{[%evp 16,79,19,16,16,8,71,70,70,16,18,32767,32767,0,6,0,19,-7,32767,-46,-78,-40,-42,-103,-127,-278,-281,-276,-296,-302,-291,-319,-276,-256,-276,-243,32767,-362,-195,-193,-181,-268,-301,-269,-292,-329,-365,-371,32767,-313,-309,-351,32767,32767,32767,32767,-820,-793,-835,-940,-1092,-891,-1084,-951,-1256,-956]} 1. d4 {[%emt 0:00:30]} g6 {[%emt 0:01:00]} 2. e4 {[%emt 0:00:30]} Bg7 {[%emt 0:00:30]} 3. c4 {[%emt 0:00:30]} d6 {[%emt 0:00:00]} 4. Nc3 {[%emt 0:02:30]} Nf6 {[%emt 0:00:00]} 5. Be2 {[%emt 0:01:30]} O-O {[%emt 0:00:30]} 6. Nf3 {[%emt 0:00:30]} e5 {[%emt 0:00:30]} 7. d5 {[%emt 0:00:30]} a5 {[%emt 0:00:30]} 8. h3 {[%emt 0:00:00]} Na6 {[%emt 0:01:30]} 9. Bg5 {[%emt 0:00:00]} h6 {[%emt 0:09:30] LiveBook: 103 Games} 10. Be3 {[%emt 0:00:30]} Kh8 {[%emt 0:18:30] E92: King's Indian: Classical: 6 Be2 e5: 7 dxe5, 7 Be3 and Petrosian System without 7...Nbd7} (10... Nh5 $11 {remains equal.}) (10... c6 11. Nd2 Bd7 12. g4 Nc5 13. h4 a4 14. g5 hxg5 15. hxg5 Nh7 16. Rg1 Qa5 17. Qc2 a3 18. b4 Qxb4 19. Rb1 Qa5 20. Bxc5 dxc5 21. Rxb7 {0-1 (56) Krasenkow,M (2614)-Hillarp Persson,T (2544) Stockholm 2015}) 11. g4 $146 {[%emt 0:10:30]} ({Predecessor:} 11. O-O Ng8 12. Nd2 Bd7 13. a3 Qe7 14. Qc2 f5 15. exf5 gxf5 16. f4 a4 17. Rae1 Rae8 18. Bh5 {1-0 (41) Panzer,P (2330)-Keschitz,G (2290) Budapest 1993}) 11... Ng8 {[%emt 0:00:00]} 12. Nd2 {[%emt 0:12:30]} ({Better is} 12. g5 $16) 12... f5 {[%emt 0:08:00]} 13. exf5 {[%emt 0:01:30]} gxf5 {[%emt 0:00:00]} 14. gxf5 {[%emt 0:00:00]} Bxf5 {[%emt 0:00:00]} 15. Nde4 {[%emt 0:03:00]} Qh4 {[%emt 0:01:30]} 16. Bg4 {[%emt 0:09:30]} Bh7 {[%emt 0:02:30]} 17. Qd2 {[%emt 0:09:30]} Nf6 {[%emt 0:09:30]} 18. Ng3 $1 {[%emt 0:07:30]} Nb4 {[%emt 0:09:30]} 19. Bf5 {[%emt 0:04:30]} Qxc4 {[%emt 0:07:30]} 20. Bxh6 $2 {[%emt 0:03:30]} (20. b3 $17 {might work better.} Nd3+ 21. Kd1) 20... Bxh6 {[%emt 0:00:30]} ({Worse is} 20... Nbxd5 21. Bxg7+ Kxg7 22. Be6 $16) 21. Qxh6 {[%emt 0:01:30]} Qf4 {[%emt 0:00:00]} ({Worse is} 21... Nbxd5 22. Nh5 $11) 22. Qxf4 {[%emt 0:04:30]} exf4 {[%emt 0:00:00]} 23. Bxh7 {[%emt 0:00:30]} Kxh7 {[%emt 0:00:30]} ({Much less strong is} 23... Nxh7 24. Nge4 $19) 24. Nge2 {[%emt 0:01:30]} Nc2+ {[%emt 0:00:00]} ({Weaker is} 24... Nbxd5 25. Nxd5 Nxd5 26. O-O-O $17) (24... Nfxd5 25. Kd2 $17) 25. Kd2 {[%emt 0:00:30]} Nxa1 {[%emt 0:00:00]} 26. Nxf4 {[%emt 0:00:30] [#]} Nc2 {[%emt 0:12:38]} (26... Ne4+ $142 $1 27. Nxe4 Rxf4) 27. Kxc2 {[%emt 0:00:30] [#]} Ne4 $1 {[%emt 0:00:52]} 28. Nxe4 {[%emt 0:00:30]} Rxf4 {[%emt 0:00:04]} 29. Kd3 {[%emt 0:01:30]} Re8 {[%emt 0:00:44]} 30. Re1 {[%emt 0:01:30]} Re5 {[%emt 0:00:17]} 31. Re2 {[%emt 0:03:30]} Rxd5+ {[%emt 0:02:31]} 32. Ke3 {[%emt 0:00:30]} Rf8 {[%emt 0:01:17]} 33. f4 {[%emt 0:03:08]} Kh6 {[%emt 0:00:23]} 34. Rg2 {[%emt 0:02:29]} Re8 {[%emt 0:01:20]} 35. Rg4 {[%emt 0:02:42]} Rd1 {[%emt 0:01:23]} 36. Rh4+ {[%emt 0:02:03]} Kg7 {[%emt 0:01:52]} 37. f5 {[%emt 0:01:33]} d5 {[%emt 0:01:25]} 38. f6+ {[%emt 0:00:30]} Kg8 {[%emt 0:00:32]} 39. Rg4+ $19 {[%emt 0:01:37]} Kf8 {[%emt 0:00:07]} 40. Ke2 {[%emt 0:00:00]} Rd4 {[%emt 0:01:05]} 0-1

[Event "Turkey IS Bank Super League 2017"]
[Site "Darica-Kocaeli"]
[Date "2017.08.04"]
[Round "10"]
[White "Karagollu, Ahmet"]
[Black "Yelken, Mustafa"]
[Result "1/2-1/2"]
[ECO "A07"]
[WhiteElo "2083"]
[BlackElo "2171"]
[Annotator "ChessBase"]
[PlyCount "116"]
[EventType "team-tourn"]
[EventCountry "TUR"]
[SourceTitle "playchess.com"]
[Source "ChessBase"]
[SourceQuality "1"]
[TimeControl "40/5400+30:1800+30"]

1. g3 {[%emt 0:00:30]} d5 {[%emt 0:01:00]} 2. Bg2 {[%emt 0:00:30]} Nf6 {[%emt 0:00:30]} 3. d3 {[%emt 0:00:30]} e5 {[%emt 0:06:30]} 4. Nf3 {[%emt 0:01:30]} Nc6 {[%emt 0:00:30]} 5. O-O {[%emt 0:01:30]} Be7 {[%emt 0:03:30]} 6. Nbd2 {[%emt 0:04:30]} O-O {[%emt 0:00:30]} 7. e4 {[%emt 0:03:30]} dxe4 {[%emt 0:03:30]} 8. dxe4 {[%emt 0:00:30]} Be6 {[%emt 0:01:30]} 9. h3 {[%emt 0:08:30]} Nd7 {[%emt 0:07:30]} 10. Qe2 {[%emt 0:06:30]} Nb6 {[%emt 0:05:30]} 11. b3 {[%emt 0:12:30]} Bb4 {[%emt 0:18:30]} 12. Bb2 {[%emt 0:00:30]} Bxd2 {[%emt 0:02:30]} 13. Rad1 {[%emt 0:09:30]} Qc8 {[%emt 0:04:30]} 14. Rxd2 {[%emt 0:00:30]} f6 {[%emt 0:00:30]} 15. Kh2 {[%emt 0:00:30]} Rd8 {[%emt 0:00:30]} 16. Rxd8+ {[%emt 0:01:30]} Qxd8 {[%emt 0:00:30]} 17. Rd1 {[%emt 0:06:30]} Qf8 {[%emt 0:00:30]} 18. Nh4 {[%emt 0:01:30]} Rd8 {[%emt 0:01:30]} 19. Nf5 {[%emt 0:04:30]} Rxd1 {[%emt 0:01:30]} 20. Qxd1 {[%emt 0:00:30]} Qc5 {[%emt 0:06:30]} 21. Ne3 {[%emt 0:01:30]} a5 {[%emt 0:05:30]} 22. Qd2 {[%emt 0:04:30]} a4 {[%emt 0:02:30]} 23. Bc3 {[%emt 0:00:30]} a3 {[%emt 0:05:30]} 24. h4 {[%emt 0:04:30]} Kf7 {[%emt 0:03:23]} 25. Nd5 {[%emt 0:05:30]} Bxd5 {[%emt 0:05:48]} 26. exd5 {[%emt 0:00:30]} Nd4 {[%emt 0:00:00]} 27. Bxd4 {[%emt 0:02:12]} Qxd4 {[%emt 0:00:57]} 28. Qc1 {[%emt 0:01:16]} Qxf2 {[%emt 0:05:39]} 29. Qd1 {[%emt 0:00:01]} Qd4 {[%emt 0:03:44]} 30. Qh5+ {[%emt 0:00:15]} Kf8 {[%emt 0:00:24]} 31. Qxh7 {[%emt 0:00:02]} Nxd5 {[%emt 0:01:21]} 32. Qh8+ {[%emt 0:01:24]} Kf7 {[%emt 0:00:06]} 33. Bxd5+ {[%emt 0:08:20]} Qxd5 {[%emt 0:00:37]} 34. Qh5+ {[%emt 0:00:30]} Ke7 {[%emt 0:00:00]} 35. Qg4 {[%emt 0:00:07]} Qd2+ {[%emt 0:00:09]} 36. Kh1 {[%emt 0:00:36]} Qc1+ {[%emt 0:00:54]} 37. Kh2 {[%emt 0:00:01]} Qxc2+ {[%emt 0:00:39]} 38. Kh3 {[%emt 0:00:00]} g6 {[%emt 0:01:14]} 39. Qb4+ {[%emt 0:00:35]} Kd7 {[%emt 0:01:05]} 40. Qxa3 {[%emt 0:00:00]} Qf5+ {[%emt 0:01:30]} 41. Kg2 {[%emt 0:05:11]} Qe4+ {[%emt 0:01:30]} 42. Kh2 {[%emt 0:00:30]} Qe2+ {[%emt 0:00:30]} 43. Kh3 {[%emt 0:00:30]} Qf1+ {[%emt 0:00:30]} 44. Kh2 {[%emt 0:00:30]} Qf2+ {[%emt 0:00:30]} 45. Kh3 {[%emt 0:00:00]} Qf5+ {[%emt 0:01:30]} 46. Kg2 {[%emt 0:00:00]} e4 {[%emt 0:00:30]} 47. Qa4+ {[%emt 0:01:30]} c6 {[%emt 0:00:30]} 48. Qb4 {[%emt 0:00:30]} Qf3+ {[%emt 0:04:30]} 49. Kh2 {[%emt 0:00:30]} Qf2+ {[%emt 0:01:30]} 50. Kh3 {[%emt 0:00:30]} Qf5+ {[%emt 0:00:30]} 51. Kg2 {[%emt 0:04:30]} Kc7 {[%emt 0:03:30]} 52. Qe7+ {[%emt 0:00:30]} Kb8 {[%emt 0:02:30]} 53. Qf8+ {[%emt 0:00:30]} Ka7 {[%emt 0:01:46]} 54. Qa3+ {[%emt 0:00:30]} Kb6 {[%emt 0:00:04]} 55. Qb4+ {[%emt 0:00:30]} Kc7 {[%emt 0:00:46]} 56. Qe7+ {[%emt 0:00:00]} Kb6 {[%emt 0:04:30]} 57. Qb4+ {[%emt 0:01:00]} Ka6 {[%emt 0:00:06]} 58. Qa4+ {[%emt 0:01:30]} Kb6 {[%emt 0:00:50]} 1/2-1/2